fUSD/lending_fUSD_20260405
["ID","MTS","AMOUNT","RATE_DAILY","PERIOD"]
[419813199,1775393476782,-162.35,0.00031997,7]
[419813200,1775393476793,-162.35,0.00031997,7]
[419813201,1775393476803,-256.446677,0.00031997,7]
[419813202,1775393476813,-256.446677,0.00031997,7]
[419813203,1775393476824,-256.446677,0.00031997,7]
[419813204,1775393476834,-1000.0,0.00031999,2]
[419813205,1775393476844,-162.35,0.00031999,2]
[419813206,1775393476854,-162.35,0.00031999,2]
[419813207,1775393476864,-162.35,0.00031999,2]
[419813208,1775393476873,-162.35,0.00031999,2]
[419813209,1775393476883,-162.35,0.00031999,2]
[419813210,1775393476893,-162.35,0.00031999,2]
[419813211,1775393476903,-162.35,0.00031999,2]
[419813212,1775393476913,-162.35,0.00031999,2]
[419813213,1775393476923,-162.35,0.00031999,2]
[419813214,1775393476933,-162.35,0.00031999,2]
[419813215,1775393476942,-500.0,0.00031999,120]
[419813216,1775393476953,-2000.0,0.00031999,26]
[419813217,1775393476964,-2000.0,0.00031999,26]
[419813218,1775393476973,-151.0,0.00032,4]
[419813219,1775393476983,-3000.0,0.00032,21]
[419813220,1775393476994,-6208109.14413038,0.00032,120]
[419813221,1775393477015,-375.00309798,0.00032,120]
[419813222,1775393477027,-476.74,0.00032,120]
[419813223,1775393477842,-1.51603929,0.0001802,2]
[419813224,1775393479025,-690.11300001,0.00013429,2]
[419813225,1775393479076,500.0,8.928e-05,2]
[419813226,1775393479115,500.0,8.928e-05,2]
[419813227,1775393479479,-960.88699999,0.00013429,2]
[419813228,1775393479490,-5329.93637863,0.0001802,2]
[419813229,1775393479504,-688.54758208,0.0001802,2]
[419813230,1775393479515,-1096.02357157,0.0002102,2]
[419813231,1775393479983,-1654.85122809,0.00013429,2]
[419813232,1775393479995,-4923.97642843,0.0002102,2]
[419813233,1775393480005,-6020.0,0.0002402,2]
[419813234,1775393480015,-6020.0,0.0002702,2]
[419813235,1775393480026,-5039.06340642,0.0003002,2]
[419813236,1775393480446,-980.93659358,0.0003002,2]
[419813237,1775393480456,-1000.0,0.00030709,120]
[419813238,1775393480467,-789.84784669,0.00030709,120]
[419813239,1775393480488,-210.15215331,0.00030709,120]
[419813240,1775393480500,-1000.0,0.00030709,120]
[419813241,1775393480510,-1000.0,0.00030709,120]
[419813242,1775393480520,-1000.0,0.00030709,120]
[419813243,1775393480531,-900.54054669,0.00030709,120]
[419813244,1775393480587,-1623.64739,0.00027397,10]
[419813245,1775393480780,500.16972536,8.928e-05,2]
[419813246,1775393480813,500.0,8.928e-05,2]
[419813247,1775393480849,500.0,8.928e-05,2]
[419813248,1775393480882,501.0223412,8.928e-05,2]
[419813249,1775393480916,500.0,8.928e-05,2]
[419813250,1775393480963,166.12572575,8.928e-05,2]
[419813251,1775393481001,500.0,8.928e-05,2]
[419813252,1775393481036,500.0,8.928e-05,2]
[419813253,1775393481078,164.2374577,8.928e-05,2]
[419813254,1775393481113,260.293386,8.928e-05,2]
[419813255,1775393482760,150.0,8.927e-05,2]
[419813256,1775393482994,290.25550646,8.93e-05,2]
[419813257,1775393486453,278.0,8.927e-05,2]
[419813259,1775393524532,9281.75449354,8.929e-05,2]
[419813260,1775393524558,10000.01,8.929e-05,2]
[419813261,1775393524583,10000.01,8.929e-05,2]
[419813262,1775393524608,10000.01,8.929e-05,2]
[419813263,1775393524633,10000.01,8.929e-05,2]
[419813264,1775393524658,10000.01,8.929e-05,2]
[419813265,1775393524682,10000.01,8.929e-05,2]
[419813266,1775393524708,10000.01,8.929e-05,2]
[419813267,1775393524735,10000.01,8.929e-05,2]
[419813268,1775393537816,-215.415209,8.929e-05,2]
[419813269,1775393539939,278.0,8.929e-05,2]
[419813272,1775393556663,-1156.584791,8.929e-05,2]
[419813274,1775393649921,3826.437556,8.883e-05,2]
[419813275,1775393673361,-481.0,8.928e-05,2]
[419813276,1775393673392,-300.0,8.928e-05,2]
[419813277,1775393673421,-150.0,8.928e-05,2]
[419813278,1775393673451,-300.0,8.928e-05,2]
[419813279,1775393679496,7538.01,8.928e-05,2]
[419813280,1775393704915,-1200.0,8.927e-05,2]
[419813281,1775393704945,-300.0,8.927e-05,2]
[419813282,1775393705090,-6485.07294435,8.928e-05,2]
[419813283,1775393705109,-3959.40862693,8.928e-05,2]
[419813284,1775393705118,-500.0,8.928e-05,2]
[419813285,1775393708123,1065.369257,7.945e-05,2]
[419813286,1775393724061,278.0,8.928e-05,2]
[419813287,1775393735722,500.0,8.928e-05,2]
[419813288,1775393781091,1127.93,8.928e-05,2]
[419813289,1775393788719,500.0,8.928e-05,2]
[419813290,1775393821038,-500.0,8.928e-05,2]
[419813291,1775393821060,-500.0,8.928e-05,2]
[419813292,1775393821081,-500.0,8.928e-05,2]
[419813293,1775393821102,-554.14863873,8.928e-05,2]
[419813294,1775393821141,-666.01353801,8.928e-05,2]
[419813295,1775393821169,-666.01353801,8.928e-05,2]
[419813296,1775393821195,-666.01353801,8.928e-05,2]
[419813297,1775393821223,-666.01353801,8.928e-05,2]
[419813298,1775393821249,-666.01353801,8.928e-05,2]
[419813299,1775393821277,-666.01353801,8.928e-05,2]
[419813300,1775393821304,-666.01353801,8.928e-05,2]
[419813301,1775393821331,-666.01353801,8.928e-05,2]
[419813302,1775393821358,-666.01353801,8.928e-05,2]
[419813303,1775393821384,-666.01353801,8.928e-05,2]
[419813304,1775393821411,-666.01353801,8.928e-05,2]
[419813305,1775393821438,-619.70244316,8.928e-05,2]
[419813306,1775393821535,300.0,8.927e-05,2]
[419813307,1775393821612,150.0,8.927e-05,2]
[419813308,1775393822223,300.0,8.927e-05,2]
[419813309,1775393823927,-46.31109485,8.928e-05,2]
[419813310,1775393823957,-666.01353801,8.928e-05,2]
[419813311,1775393823985,-666.01353801,8.928e-05,2]
[419813312,1775393824014,-666.01353801,8.928e-05,2]
[419813313,1775393824042,-666.01353801,8.928e-05,2]
[419813314,1775393824072,-666.01353801,8.928e-05,2]
[419813315,1775393824099,-666.01353801,8.928e-05,2]
[419813316,1775393824128,-666.01353801,8.928e-05,2]
[419813317,1775393824156,-666.01353801,8.928e-05,2]
[419813318,1775393824184,-666.01353801,8.928e-05,2]
[419813319,1775393824211,-666.01353801,8.928e-05,2]
[419813320,1775393824239,-666.01353801,8.928e-05,2]
[419813321,1775393824266,-666.01353801,8.928e-05,2]
[419813322,1775393824294,-666.01353801,8.928e-05,2]
[419813323,1775393824321,-666.01353801,8.928e-05,2]
[419813324,1775393824350,-629.49937301,8.928e-05,2]
[419813325,1775393825337,-36.514165,8.928e-05,2]
[419813326,1775393825366,-666.01353801,8.928e-05,2]
[419813327,1775393825393,-666.01353801,8.928e-05,2]
[419813328,1775393825421,-666.01353801,8.928e-05,2]
[419813329,1775393825449,-666.01353801,8.928e-05,2]
[419813330,1775393825478,-666.01353801,8.928e-05,2]
[419813331,1775393825507,-666.01353801,8.928e-05,2]
[419813332,1775393825535,-666.01353801,8.928e-05,2]
[419813333,1775393825563,-666.01353801,8.928e-05,2]
[419813334,1775393825601,-666.01353801,8.928e-05,2]
[419813335,1775393825632,-666.01353801,8.928e-05,2]
[419813336,1775393825660,-666.01353801,8.928e-05,2]
[419813337,1775393825689,-666.01353801,8.928e-05,2]
[419813338,1775393825717,-666.01353801,8.928e-05,2]
[419813339,1775393825745,-666.01353801,8.928e-05,2]
[419813340,1775393825774,-639.29630286,8.928e-05,2]
[419813341,1775393828014,-26.71723515,8.928e-05,2]
[419813342,1775393828040,-666.01353801,8.928e-05,2]
[419813343,1775393828064,-666.01353801,8.928e-05,2]
[419813344,1775393828091,-666.01353801,8.928e-05,2]
[419813345,1775393828115,-666.01353801,8.928e-05,2]
[419813346,1775393828140,-666.01353801,8.928e-05,2]
[419813347,1775393828167,-666.01353801,8.928e-05,2]
[419813348,1775393828192,-666.01353801,8.928e-05,2]
[419813349,1775393828218,-666.01353801,8.928e-05,2]
[419813350,1775393828243,-666.01353801,8.928e-05,2]
[419813351,1775393828270,-666.01353801,8.928e-05,2]
[419813352,1775393828298,-666.01353801,8.928e-05,2]
[419813353,1775393828325,-666.01353801,8.928e-05,2]
[419813354,1775393828348,-269.88549154,8.928e-05,2]
[419813355,1775393828373,-649.36319955,8.928e-05,2]
[419813356,1775393828399,-649.36319955,8.928e-05,2]
[419813357,1775393828425,-412.50841809,8.928e-05,2]
[419813358,1775393829713,-236.85478146,8.928e-05,2]
[419813359,1775393829741,-649.36319955,8.928e-05,2]
[419813360,1775393829767,-649.36319955,8.928e-05,2]
[419813361,1775393829793,-649.36319955,8.928e-05,2]
[419813362,1775393829819,-649.36319955,8.928e-05,2]
[419813363,1775393829845,-649.36319955,8.928e-05,2]
[419813364,1775393829873,-649.36319955,8.928e-05,2]
[419813365,1775393829899,-649.36319955,8.928e-05,2]
[419813366,1775393829924,-649.36319955,8.928e-05,2]
[419813367,1775393829950,-649.36319955,8.928e-05,2]
[419813368,1775393829982,-649.36319955,8.928e-05,2]
[419813369,1775393830008,-649.36319955,8.928e-05,2]
[419813370,1775393830036,-649.36319955,8.928e-05,2]
[419813371,1775393830061,-649.36319955,8.928e-05,2]
[419813372,1775393830088,-649.36319955,8.928e-05,2]
[419813373,1775393830113,-649.36319955,8.928e-05,2]
[419813374,1775393830140,-22.69722529,8.928e-05,2]
[419813375,1775393831286,-626.66597426,8.928e-05,2]
[419813376,1775393831313,-649.36319955,8.928e-05,2]
[419813377,1775393831342,-649.36319955,8.928e-05,2]
[419813378,1775393831369,-649.36319955,8.928e-05,2]
[419813379,1775393831396,-649.36319955,8.928e-05,2]
[419813380,1775393831422,-649.36319955,8.928e-05,2]
[419813381,1775393831451,-649.36319955,8.928e-05,2]
[419813382,1775393831475,-500.0,8.928e-05,2]
[419813383,1775393831498,-454.99800129,8.928e-05,2]
[419813384,1775393831522,-631.93230352,8.928e-05,2]
[419813385,1775393831549,-1047.66626534,8.928e-05,2]
[419813386,1775393831575,-1047.66626534,8.928e-05,2]
[419813387,1775393831603,-1047.66626534,8.928e-05,2]
[419813388,1775393831631,-747.22572761,8.928e-05,2]
[419813389,1775393831704,500.0,8.928e-05,2]
[419813390,1775393836730,-300.44053773,8.928e-05,2]
[419813391,1775393836758,-1047.66626534,8.928e-05,2]
[419813392,1775393836786,-1047.66626534,8.928e-05,2]
[419813393,1775393836813,-426.22693159,8.928e-05,2]
[419813395,1775393878075,2500.0,8.829e-05,2]
[419813396,1775393879344,2778.710743,8.928e-05,2]
[419813397,1775393879366,10000.01,8.928e-05,2]
[419813400,1775394022114,-1200.0,8.927e-05,2]
[419813401,1775394022143,-255.51004428,8.928e-05,2]
[419813402,1775394022172,-278.0,8.928e-05,2]
[419813403,1775394022201,-300.0,8.928e-05,2]
[419813404,1775394022231,-150.0,8.928e-05,2]
[419813405,1775394022260,-300.0,8.928e-05,2]
[419813406,1775394022289,-250.0,8.928e-05,2]
[419813407,1775394030151,278.0,8.928e-05,2]
[419813408,1775394033758,4254.98991144,8.829e-05,2]
[419813410,1775394085677,-5467.02008856,8.829e-05,2]
[419813411,1775394087364,-10000.01,8.829e-05,2]
[419813412,1775394087469,-30.9286,8.829e-05,2]
[419813413,1775394087494,-9938.1528,8.829e-05,2]
[419813414,1775394093621,-3115.699,8.75e-05,2]
[419813415,1775394093644,-3768.612,8.75e-05,2]
[419813418,1775394099913,-362.197,8.75e-05,2]
[419813419,1775394099942,-275.0,8.75e-05,2]
[419813420,1775394099970,-2500.0,8.829e-05,2]
[419813421,1775394100086,-3725.616,8.904e-05,2]
[419813422,1775394106097,-4774.384,8.904e-05,2]
[419813424,1775394109830,451.242,8.904e-05,2]
[419813425,1775394109854,5636.037257,8.904e-05,2]
[419813426,1775394135548,3016.0,8.904e-05,2]
[419813427,1775394149176,378.198,8.829e-05,2]
[419813428,1775394152697,-500.0,8.913e-05,2]
[419813429,1775394152726,-500.0,8.913e-05,2]
[419813430,1775394152757,-500.0,8.913e-05,2]
[419813431,1775394152786,-500.0,8.913e-05,2]
[419813432,1775394152814,-164.4153201,8.913e-05,2]
[419813433,1775394152841,-150.0,8.928e-05,2]
[419813434,1775394152873,-325.63890607,8.928e-05,2]
[419813435,1775394152903,-150.0,8.928e-05,2]
[419813436,1775394152934,-250.0,8.928e-05,2]
[419813437,1775394152964,-150.0,8.928e-05,2]
[419813438,1775394153007,-151.0,8.929e-05,2]
[419813439,1775394153036,-150.0,8.929e-05,2]
[419813440,1775394181586,150.0,8.928e-05,2]
[419813441,1775394182133,300.0,8.928e-05,2]
[419813444,1775394189330,500.0,8.928e-05,2]
[419813445,1775394189370,500.0,8.928e-05,2]
[419813446,1775394189503,500.0,8.928e-05,2]
[419813447,1775394189558,643.45588026,8.928e-05,2]
[419813448,1775394198413,424.4456674,8.829e-05,2]
[419813449,1775394198435,10000.01,8.829e-05,2]
[419813450,1775394198457,10000.01,8.829e-05,2]
[419813451,1775394198485,7635.0987326,8.829e-05,2]
[419813452,1775394204925,2364.9112674,8.829e-05,2]
[419813453,1775394204947,135.0887326,8.829e-05,2]
[419813454,1775394294732,8621.812,8.829e-05,2]
[419813455,1775394370963,1243.1092674,8.829e-05,2]
[419813456,1775394370986,1256.8907326,8.829e-05,2]
[419813457,1775394440136,-1200.0,8.927e-05,2]
[419813458,1775394440158,-150.0,8.927e-05,2]
[419813459,1775394440179,-300.0,8.927e-05,2]
[419813460,1775394440200,-300.0,8.927e-05,2]
[419813461,1775394440221,-48.80709996,8.928e-05,2]
[419813462,1775394450304,472.3296,8.827e-05,2]
[419813463,1775394458820,5000.01,8e-05,2]
[419813466,1775394532564,2500.0,8.829e-05,2]
[419813467,1775394564642,770.7796674,8.829e-05,2]
[419813468,1775394564670,10000.01,8.829e-05,2]
[419813469,1775394564696,10000.01,8.829e-05,2]
[419813470,1775394564722,10000.01,8.829e-05,2]
[419813471,1775394564748,10000.01,8.829e-05,2]
[419813472,1775394564775,10000.01,8.829e-05,2]
[419813473,1775394564802,10000.01,8.829e-05,2]
[419813474,1775394564828,10000.01,8.829e-05,2]
[419813475,1775394564854,10000.01,8.829e-05,2]
[419813476,1775394564879,10000.01,8.829e-05,2]
[419813477,1775394572449,171.16,7.319e-05,2]
[419813478,1775394572498,171.16,8.234e-05,2]
[419813479,1775394581320,276.0,8.829e-05,2]
[419813480,1775394601183,300.0,8.828e-05,2]
[419813481,1775394601217,1200.0,8.828e-05,2]
[419813485,1775394630189,7881.69,8.828e-05,2]
[419813486,1775394630214,10000.01,8.828e-05,2]
[419813487,1775394630238,10000.01,8.828e-05,2]
[419813488,1775394630263,10000.01,8.828e-05,2]
[419813489,1775394630288,10000.01,8.828e-05,2]
[419813490,1775394630311,10000.01,8.828e-05,2]
[419813491,1775394630355,10000.01,8.828e-05,2]
[419813492,1775394630399,10000.01,8.828e-05,2]
[419813493,1775394630444,10000.01,8.828e-05,2]
[419813494,1775394630486,10000.01,8.828e-05,2]
[419813499,1775394632014,-2908.62641723,8.828e-05,2]
[419813500,1775394632031,-382.01159381,8.828e-05,2]
[419813501,1775394632171,-1085.56,8.828e-05,2]
[419813502,1775394632210,-105538.3526792,8.828e-05,2]
[419813503,1775394632227,-439.78,8.828e-05,2]
[419813504,1775394635216,-500.0,8.827e-05,2]
[419813505,1775394635247,-262.8042033,8.827e-05,2]
[419813506,1775394635278,-227.94723425,8.827e-05,2]
[419813507,1775394635307,-168.4986009,8.827e-05,2]
[419813508,1775394635340,-500.0,8.827e-05,2]
[419813509,1775394635374,-500.0,8.827e-05,2]
[419813510,1775394635407,-500.0,8.827e-05,2]
[419813511,1775394638033,-500.0,8.827e-05,2]
[419813512,1775394638042,-250.0,8.827e-05,2]
[419813513,1775394638051,-218.12794408,8.828e-05,2]
[419813514,1775394638080,-796.37778455,8.828e-05,2]
[419813515,1775394638313,-2290749.38358113,8.828e-05,2]
[419813516,1775394638322,-1409229.1303326,8.829e-05,2]
[419813517,1775394638331,-500.13692831,8.903e-05,2]
[419813518,1775394638340,-500.0,8.903e-05,2]
[419813519,1775394638349,-500.0,8.903e-05,2]
[419813520,1775394638359,-500.0,8.903e-05,2]
[419813521,1775394638368,-500.0,8.903e-05,2]
[419813522,1775394638377,-500.0,8.903e-05,2]
[419813523,1775394638386,-500.0,8.903e-05,2]
[419813524,1775394638396,-500.0,8.903e-05,2]
[419813525,1775394638407,-500.0,8.903e-05,2]
[419813526,1775394638417,-500.0,8.903e-05,2]
[419813527,1775394638428,-199.90943792,8.903e-05,2]
[419813528,1775394638437,-150.0,8.927e-05,2]
[419813529,1775394638447,-300.0,8.927e-05,2]
[419813530,1775394638456,-1000.0,8.928e-05,2]
[419813531,1775394638466,-1000.0,8.928e-05,2]
[419813532,1775394638476,-1000.0,8.928e-05,2]
[419813533,1775394638485,-500.0,8.928e-05,2]
[419813534,1775394638496,-1883.25820647,8.963e-05,2]
[419813535,1775394638506,-17857.39954514,8.963e-05,2]
[419813537,1775394638515,-10000.0,9.029e-05,2]
[419813538,1775394638524,-500.0,9.065e-05,2]
[419813539,1775394638533,-6687.78,9.065e-05,2]
[419813540,1775394638542,-556.42,9.118e-05,2]
[419813541,1775394638551,-150.99,9.118e-05,2]
[419813542,1775394638561,-999.99,9.118e-05,2]
[419813543,1775394638570,-9999.99,9.118e-05,2]
[419813544,1775394638579,-4999.99,9.118e-05,2]
[419813545,1775394638588,-6229.77,9.118e-05,2]
[419813546,1775394638598,-9572.89,9.118e-05,2]
[419813547,1775394638606,-34680.75,9.118e-05,2]
[419813548,1775394638615,-1905.86,9.118e-05,2]
[419813549,1775394638624,-2117.15,9.118e-05,2]
[419813550,1775394638634,-299.99,9.118e-05,2]
[419813551,1775394638644,-171.16,9.149e-05,2]
[419813552,1775394638655,-500.0,9.202e-05,2]
[419813553,1775394638665,-153.02756354,9.32e-05,2]
[419813554,1775394638674,-9999.99,9.32e-05,2]
[419813555,1775394638684,-7947.7,9.32e-05,2]
[419813556,1775394638694,-2459.19,9.32e-05,2]
[419813557,1775394638703,-150.99,9.32e-05,2]
[419813558,1775394638712,-1563.0514107,9.33e-05,2]
[419813559,1775394638721,-369.49,9.33e-05,2]
[419813560,1775394638731,-1000.0,9.451e-05,2]
[419813561,1775394638740,-1004.05506813,9.451e-05,2]
[419813562,1775394638749,-1000.0,9.451e-05,2]
[419813563,1775394638758,-1000.0,9.451e-05,2]
[419813564,1775394638767,-1000.0,9.451e-05,2]
[419813565,1775394638776,-1000.0,9.451e-05,2]
[419813566,1775394638785,-1000.0,9.451e-05,2]
[419813567,1775394638794,-500.0,9.476e-05,2]
[419813568,1775394638803,-302.2931487,9.518e-05,2]
[419813569,1775394638812,-556.42,9.625e-05,2]
[419813570,1775394638821,-483.0,9.63e-05,2]
[419813571,1775394638831,-674.0,9.649e-05,2]
[419813572,1775394638840,-624.0,9.669e-05,2]
[419813573,1775394638849,-29999.99,9.67e-05,2]
[419813574,1775394638858,-22044.56,9.67e-05,2]
[419813575,1775394638867,-9999.99,9.67e-05,2]
[419813576,1775394638876,-1287.0,9.688e-05,2]
[419813577,1775394638886,-1927.0845,9.699e-05,2]
[419813578,1775394638895,-420.0,9.711e-05,2]
[419813579,1775394638904,-1680.0,9.711e-05,2]
[419813580,1775394638913,-193.0,9.712e-05,2]
[419813581,1775394638923,-250.0,9.712e-05,2]
[419813582,1775394638934,-1244.08353615,9.738e-05,2]
[419813583,1775394638943,-500.0,9.75e-05,2]
[419813584,1775394638952,-313.0,9.782e-05,2]
[419813585,1775394638962,-150.0,9.8e-05,2]
[419813586,1775394638971,-382.0,9.801e-05,2]
[419813587,1775394638981,-193.0,9.82e-05,2]
[419813588,1775394638990,-250.0,9.82e-05,2]
[419813589,1775394638999,-5000.0,9.82e-05,2]
[419813590,1775394639010,-364.19001434,9.82e-05,2]
[419813591,1775394639019,-255.0,9.82e-05,2]
[419813592,1775394639029,-420.0,9.82e-05,2]
[419813593,1775394639039,-262.0,9.821e-05,2]
[419813594,1775394639048,-285.0,9.84e-05,2]
[419813595,1775394639058,-1500.0,9.998e-05,2]
[419813596,1775394639067,-1500.0,9.998e-05,2]
[419813597,1775394639077,-1500.0,9.998e-05,2]
[419813598,1775394639087,-1500.0,9.998e-05,2]
[419813599,1775394639096,-1500.0,9.998e-05,2]
[419813600,1775394639105,-500.0,9.998e-05,2]
[419813601,1775394639116,-151.0,0.0001,2]
[419813602,1775394639125,-179.80643111,0.0001,2]
[419813603,1775394639136,-362.86436321,0.0001,2]
[419813604,1775394639146,-1466.85092413,0.0001,2]
[419813605,1775394639156,-500.0,0.0001,2]
[419813606,1775394639165,-500.0,0.0001,2]
[419813607,1775394639175,-500.0,0.0001,2]
[419813608,1775394639184,-500.0,0.0001,2]
[419813609,1775394639193,-500.0,0.0001,2]
[419813610,1775394639203,-500.0,0.0001,2]
[419813611,1775394639212,-500.0,0.0001,2]
[419813612,1775394639222,-500.0,0.0001,2]
[419813613,1775394639231,-500.0,0.0001,2]
[419813614,1775394639240,-500.0,0.0001,2]
[419813615,1775394639250,-500.0,0.0001,2]
[419813616,1775394639259,-200.0,0.0001,2]
[419813617,1775394639269,-151.0,0.0001,2]
[419813618,1775394639278,-151.0,0.0001,2]
[419813619,1775394639288,-151.0,0.0001,2]
[419813620,1775394639297,-151.0,0.0001,2]
[419813621,1775394639306,-151.0,0.0001,2]
[419813622,1775394639315,-151.0,0.0001,2]
[419813623,1775394639325,-151.0,0.0001,2]
[419813624,1775394639334,-151.0,0.0001,2]
[419813625,1775394639343,-151.0,0.0001,2]
[419813626,1775394639352,-151.0,0.0001,2]
[419813627,1775394639362,-151.0,0.0001,2]
[419813628,1775394639372,-500.0,0.0001,2]
[419813629,1775394639382,-151.0,0.0001,2]
[419813630,1775394639391,-500.0,0.0001,2]
[419813631,1775394639400,-151.0,0.0001,2]
[419813632,1775394639410,-151.0,0.0001,2]
[419813633,1775394639419,-500.0,0.0001,2]
[419813634,1775394639428,-151.0,0.0001,2]
[419813635,1775394639438,-151.0,0.0001,2]
[419813636,1775394639447,-500.0,0.0001,2]
[419813637,1775394639456,-151.0,0.0001,2]
[419813638,1775394639466,-500.0,0.0001,2]
[419813639,1775394639475,-151.0,0.0001,2]
[419813640,1775394639485,-500.0,0.0001,2]
[419813641,1775394639494,-151.0,0.0001,2]
[419813642,1775394639503,-500.0,0.0001,2]
[419813643,1775394639514,-151.0,0.0001,2]
[419813644,1775394639524,-500.0,0.0001,2]
[419813645,1775394639534,-151.0,0.0001,2]
[419813646,1775394639543,-500.0,0.0001,2]
[419813647,1775394639553,-151.0,0.0001,2]
[419813648,1775394639562,-500.0,0.0001,2]
[419813649,1775394639571,-151.0,0.0001,2]
[419813650,1775394639581,-500.0,0.0001,2]
[419813651,1775394639592,-151.0,0.0001,2]
[419813652,1775394639602,-151.0,0.0001,2]
[419813653,1775394639611,-151.0,0.0001,2]
[419813654,1775394639620,-151.0,0.0001,2]
[419813655,1775394639630,-151.0,0.0001,2]
[419813656,1775394639639,-151.0,0.0001,2]
[419813657,1775394639651,-151.0,0.0001,2]
[419813658,1775394639661,-151.0,0.0001,2]
[419813659,1775394639670,-1386.78395259,0.0001,2]
[419813660,1775394639680,-151.0,0.0001,2]
[419813661,1775394639689,-151.0,0.0001,2]
[419813662,1775394639698,-9136.91222219,0.0001,2]
[419813663,1775394639708,-348.59863987,0.0001,2]
[419813664,1775394639717,-1868.36855339,0.0001,2]
[419813665,1775394639727,-1868.36855339,0.0001,2]
[419813666,1775394639736,-500.0,0.00010024,2]
[419813667,1775394639746,-2662.5,0.00010058,2]
[419813669,1775394639756,-2662.5,0.00010058,2]
[419813671,1775394639766,-2662.5,0.00010058,2]
[419813672,1775394639776,-2662.5,0.00010058,2]
[419813673,1775394639786,-2662.5,0.00010058,2]
[419813674,1775394639796,-171.16,0.00010064,2]
[419813675,1775394639805,-556.42,0.00010131,2]
[419813676,1775394639814,-637.0,0.00010256,2]
[419813677,1775394639824,-1356.0,0.00010276,2]
[419813678,1775394639833,-500.0,0.00010298,2]
[419813679,1775394639842,-481.62,0.00010405,2]
[419813680,1775394639851,-600.0,0.00010491,2]
[419813681,1775394639861,-340.29,0.00010491,2]
[419813682,1775394639871,-2000.0,0.00010546,2]
[419813683,1775394639880,-2000.0,0.00010546,2]
[419813684,1775394639890,-2000.0,0.00010546,2]
[419813685,1775394639899,-2000.0,0.00010546,2]
[419813686,1775394639909,-2000.0,0.00010546,2]
[419813687,1775394639918,-200.0,0.00010548,2]
[419813688,1775394639927,-1438.09495884,0.00010548,2]
[419813689,1775394639936,-280.17407569,0.00010548,2]
[419813690,1775394639946,-500.0,0.00010572,2]
[419813691,1775394639956,-556.42,0.00010638,2]
[419813692,1775394639965,-587.0,0.00010682,2]
[419813693,1775394639975,-2351.0,0.00010682,2]
[419813694,1775394639985,-1868.36855339,0.0001069,2]
[419813695,1775394639994,-2894122.10889107,0.000107,2]
[419813696,1775394640004,-433.0,0.00010802,2]
[419813697,1775394640014,-587.0,0.00010802,2]
[419813698,1775394640023,-500.0,0.00010846,2]
[419813699,1775394640032,-9473.63643207,0.000109,2]
[419813700,1775394640042,-500.0,0.00010959,2]
[419813701,1775394640051,-171.16,0.00010979,2]
[419813702,1775394640061,-2604.59251375,0.00011,2]
[419813703,1775394640071,-500.0,0.00011073,2]
[419813704,1775394640080,-549.58015647,0.00011073,2]
[419813705,1775394640091,-500.0,0.00011073,2]
[419813706,1775394640100,-500.0,0.00011073,2]
[419813707,1775394640109,-500.0,0.00011073,2]
[419813708,1775394640119,-500.0,0.00011073,2]
[419813709,1775394640128,-500.0,0.00011073,2]
[419813710,1775394640137,-500.0,0.00011073,2]
[419813711,1775394640147,-500.0,0.00011073,2]
[419813712,1775394640156,-500.0,0.00011073,2]
[419813713,1775394640165,-1008.06532933,0.00011094,2]
[419813714,1775394640174,-2500.0,0.00011094,2]
[419813715,1775394640184,-2500.0,0.00011094,2]
[419813716,1775394640193,-2500.0,0.00011094,2]
[419813717,1775394640203,-2500.0,0.00011094,2]
[419813719,1775394640212,-200.0,0.00011096,2]
[419813720,1775394640221,-1491.30447232,0.00011096,2]
[419813721,1775394640230,-63100.90930355,0.00011099,2]
[419813722,1775394640239,-63100.90930348,0.00011099,2]
[419813723,1775394640249,-63100.90930348,0.00011099,2]
[419813724,1775394640259,-63100.90930348,0.00011099,2]